bitfinex/quotes_SOLUSD_20250131
["timestamp","ask_amount","ask_price","bid_price","bid_amount"]
[1738344619767,83.38651937,238.45,238.32,0.25098]
[1738344619979,82.6,238.45,238.34,0.12549]
[1738344620291,82.6,238.45,238.35,0.46481841]
[1738344620569,82.6,238.45,238.36,4.1953]
[1738344620738,82.6,238.45,238.37,0.71581493]
[1738344621239,0.03,238.46,238.38,1.6485]
[1738344621465,0.03,238.46,238.4,0.25098]
[1738344621638,0.03,238.46,238.42,0.25098]
[1738344621966,0.03,238.45,238.43,0.46450925]
[1738344622142,0.03,238.45,238.4,0.25098]
[1738344622451,0.03,238.45,238.42,0.25098]
[1738344622760,0.03,238.45,238.43,0.46458818]
[1738344622963,0.03,238.45,238.39,4.1948]
[1738344623163,0.03,238.45,238.4,0.46475251]
[1738344624080,0.03,238.45,238.4,4.65925251]
[1738344624583,0.03,238.45,238.36,4.1951]
[1738344624879,0.03,238.45,238.34,4.1956]
[1738344625082,0.03,238.45,238.36,0.25098]
[1738344625286,0.03,238.45,238.37,0.46501095]
[1738344625478,0.03,238.45,238.38,0.25098]
[1738344625776,0.03,238.45,238.39,0.4648268]
[1738344625975,0.03,238.45,238.39,4.6595268]
[1738344626184,0.03,238.45,238.4,0.25098]
[1738344626487,0.03,238.45,238.42,0.25098]
[1738344626651,0.03,238.45,238.43,0.46453822]
[1738344627967,0.03,238.45,238.43,4.65843822]
[1738344628169,0.03,238.45,238.42,0.25098]
[1738344628472,0.03,238.45,238.39,0.464609]
[1738344628666,0.03,238.45,238.39,4.1946]
[1738344629054,0.03,238.45,238.4,0.46485836]
[1738344629666,0.03,238.45,238.37,0.71572968]
[1738344629891,0.81645277,238.45,238.38,4.1949]
[1738344630188,0.81645277,238.45,238.33,0.4649377]
[1738344631383,0.8387,238.44,238.34,4.1956]
[1738344631684,0.78657901,238.43,238.34,4.66079125]
[1738344631990,0.78657901,238.43,238.34,4.1956]
[1738344632468,0.78657901,238.43,238.33,0.25098]
[1738344632678,0.78656855,238.42,238.34,0.46517033]
[1738344632862,0.8387,238.44,238.35,0.25098]
[1738344633180,0.78650076,238.44,238.37,0.25098]
[1738344633383,0.78650076,238.44,238.35,0.71590189]
[1738344634886,0.78650076,238.44,238.33,4.1958]
[1738344635183,6.0615,238.43,238.33,4.1958]
[1738344635482,0.78661967,238.42,238.34,0.25098]
[1738344636269,0.8388,238.41,238.34,0.25098]
[1738344636455,0.78661508,238.4,238.34,0.25098]
[1738344636879,0.78661516,238.42,238.35,0.71624356]
[1738344637581,1.62541516,238.42,238.35,0.25098]
[1738344638287,1.62541516,238.42,238.32,4.196]
[1738344638587,1.62541516,238.42,238.31,4.66136653]
[1738344639580,1.62541516,238.42,238.32,0.25098]
[1738344639789,82.6,238.41,238.28,0.063]
[1738344639983,83.38681542,238.4,238.28,0.063]
[1738344641161,0.8389,238.39,238.28,0.063]
[1738344641358,0.78684155,238.38,238.28,0.063]
[1738344641962,1.6518,238.36,238.28,0.063]
[1738344642183,89.97304849,238.35,238.28,0.063]
[1738344642362,89.1861,238.35,238.28,0.063]
[1738344643288,0.8391,238.34,238.28,0.063]
[1738344643579,0.12549,238.32,238.28,0.063]
[1738344643764,0.78704689,238.31,238.28,0.063]
[1738344645682,83.38689372,238.33,238.28,0.063]
[1738344646262,84.22599372,238.33,238.28,0.063]
[1738344646456,0.12549,238.32,238.28,0.063]
[1738344646687,0.78707151,238.31,238.28,0.063]
[1738344648086,82.6,238.33,238.28,4.2597]
[1738344648462,0.78687792,238.34,238.28,4.2597]
[1738344651667,0.78678719,238.39,238.28,4.2597]
[1738344651988,83.4389,238.38,238.28,0.063]
[1738344652162,0.78688405,238.37,238.28,0.063]
[1738344653890,0.839,238.36,238.28,0.063]
[1738344654090,0.78690573,238.35,238.28,0.063]
[1738344654789,0.78690573,238.35,238.28,4.2597]
[1738344657178,0.839,238.36,238.29,0.7165338]
[1738344657375,83.439,238.38,238.29,4.9130338]
[1738344657570,84.22567575,238.38,238.29,0.7165338]
[1738344657771,84.22567575,238.38,238.28,0.063]
[1738344658294,0.12549,238.37,238.28,0.063]
[1738344658483,0.78690311,238.36,238.28,0.063]
[1738344658999,82.6,238.35,238.28,0.063]
[1738344659173,0.7869362,238.34,238.28,0.063]
[1738344659376,0.8392,238.32,238.28,0.063]
[1738344659584,0.78693354,238.31,238.28,0.063]
[1738344660791,82.6,238.3,238.28,0.063]
[1738344660996,0.78714472,238.29,238.28,0.0001]
[1738344661180,1.78714472,238.29,238.28,0.0001]
[1738344661509,2.62644472,238.29,238.28,0.0001]
[1738344662380,1.0,238.26,238.24,0.0001]
[1738344662596,1.78736899,238.25,238.24,0.0001]
[1738344663602,2.62676899,238.25,238.24,0.0001]
[1738344664609,3.75225899,238.25,238.24,1.04021017]
[1738344664790,3.75225899,238.25,238.24,0.0001]
[1738344664992,1.62676899,238.25,238.24,0.0001]
[1738344666505,0.78736899,238.25,238.24,0.0001]
[1738344666712,0.12549,238.29,238.24,0.0001]
[1738344666996,0.12549,238.27,238.24,0.0001]
[1738344667196,0.78725397,238.26,238.24,0.0001]
[1738344669011,0.8394,238.25,238.24,0.0001]
[1738344670329,2.8394,238.25,238.24,0.0001]
[1738344670621,3.62681211,238.25,238.24,0.0001]
[1738344671696,2.62681211,238.25,238.24,0.0001]
[1738344671904,1.62681211,238.25,238.24,0.0001]
[1738344673013,2.62681211,238.25,238.24,0.0001]
[1738344673198,3.62681211,238.25,238.24,0.0001]
[1738344674218,0.12549,238.24,238.22,0.0231]
[1738344674421,83.38739713,238.23,238.22,0.0231]
[1738344675217,0.12549,238.22,238.21,0.063]
[1738344675512,82.6,238.21,238.2,0.063]
[1738344675717,1.12549,238.2,238.09,0.063]
[1738344675913,0.12549,238.18,238.09,0.063]
[1738344676219,0.12549,238.16,238.09,0.063]
[1738344677135,0.96519,238.16,238.09,0.063]
[1738344678817,4.06459,238.16,238.09,0.063]
[1738344679021,0.78767781,238.15,238.09,0.063]
[1738344680532,0.8398,238.14,238.09,0.063]
[1738344680744,83.38766428,238.13,238.09,0.063]
[1738344682014,0.4199,238.12,238.09,0.063]
[1738344682311,0.78765646,238.11,238.09,0.063]
[1738344683730,0.4199,238.1,238.09,0.063]
[1738344683929,0.78765646,238.11,238.09,0.063]
[1738344685539,82.6,238.13,238.09,4.263]
[1738344685832,83.38742456,238.19,238.11,1.593]
[1738344686039,83.38742456,238.19,238.12,0.46665788]
[1738344686341,83.38742456,238.19,238.11,1.593]
[1738344687137,82.6,238.19,238.12,11.22096878]
[1738344689907,0.78727936,238.18,238.12,6.3039]
[1738344691032,0.78727936,238.18,238.11,1.593]
[1738344691033,82.6,238.17,238.11,1.593]
[1738344691220,0.78744739,238.16,238.11,1.593]
[1738344692620,1.20724739,238.16,238.11,1.593]
[1738344693536,0.78744739,238.16,238.11,1.593]
[1738344696741,1.20724739,238.16,238.11,1.593]
[1738344697741,82.6,238.17,238.11,1.593]
[1738344698047,82.6,238.17,238.11,5.7926]
[1738344698439,0.78735701,238.16,238.11,1.593]
[1738344698743,0.78735701,238.16,238.09,0.063]
[1738344699046,82.72549,238.15,238.09,0.063]
[1738344699262,0.78763882,238.14,238.09,0.063]
[1738344699457,82.6,238.13,238.09,0.063]
[1738344699654,0.4199,238.11,238.09,0.063]
[1738344699962,0.78763143,238.1,238.09,0.063]
[1738344702376,0.78761183,238.16,238.09,0.063]
[1738344702669,0.81732771,238.2,238.11,0.25098]
[1738344702882,0.03,238.2,238.12,0.46656686]
[1738344703078,0.81729698,238.2,238.12,0.46656686]
[1738344703763,0.81729698,238.2,238.13,4.1993]
[1738344705076,0.81729698,238.2,238.12,4.1995]
[1738344705253,0.03,238.2,238.13,0.46659208]
[1738344705453,0.8172792,238.2,238.13,0.46659208]
[1738344705961,0.8172792,238.2,238.16,0.25098]
[1738344706163,0.03,238.2,238.18,0.25098]
[1738344706361,0.03,238.2,238.19,0.46611381]
[1738344707261,0.03,238.2,238.19,4.66441381]
[1738344708676,0.03,238.2,238.19,4.91539381]
[1738344710273,0.03,238.2,238.17,4.1986]
[1738344710478,0.03,238.2,238.17,4.66488045]
[1738344710677,0.03,238.2,238.18,0.25098]
[1738344712359,0.03,238.2,238.15,6.32082028]
[1738344713076,0.03,238.2,238.15,1.6557]
[1738344714277,0.81732372,238.2,238.11,0.063]
[1738344715069,0.78740791,238.19,238.11,0.063]
[1738344715892,0.4198,238.18,238.11,0.063]
[1738344716069,0.78750681,238.17,238.11,0.063]
[1738344716585,83.38750681,238.17,238.11,0.063]
[1738344717591,0.12549,238.16,238.11,0.063]
[1738344717793,0.4199,238.14,238.11,0.063]
[1738344717978,0.78761179,238.13,238.11,0.063]
[1738344719379,0.4199,238.12,238.11,0.063]
[1738344727684,0.78758796,238.16,238.11,0.063]
[1738344727886,1.20748796,238.16,238.11,0.063]
[1738344728599,2.25718796,238.16,238.11,0.063]
[1738344730596,0.78750525,238.15,238.11,0.063]
[1738344730816,0.78743543,238.19,238.11,0.063]
[1738344730978,0.78743543,238.19,238.11,4.72943071]
[1738344731314,1.20723543,238.19,238.11,4.72943071]
[1738344732103,1.20723543,238.19,238.11,0.063]
[1738344732470,1.20723543,238.19,238.11,0.31398]
[1738344732771,1.20723543,238.19,238.11,0.063]
[1738344734003,2.25673543,238.19,238.11,0.063]
[1738344734203,82.72549,238.18,238.11,0.063]
[1738344734377,0.12549,238.16,238.11,0.063]
[1738344734585,83.38758582,238.15,238.11,0.063]
[1738344736000,84.38758582,238.15,238.11,0.063]
[1738344736210,0.4199,238.14,238.11,0.063]
[1738344736503,0.4199,238.14,238.09,0.063]
[1738344736504,83.38774062,238.13,238.09,0.063]
[1738344736880,82.6,238.12,238.09,0.063]
[1738344737089,0.78775996,238.11,238.09,0.063]
[1738344738294,83.0199,238.1,238.09,0.063]
[1738344738497,83.80772467,238.1,238.09,0.063]
[1738344738699,1.33321467,238.1,238.09,0.063]
[1738344739393,0.54539,238.1,238.09,0.063]
[1738344739602,1.3331718,238.1,238.09,0.063]
[1738344740613,0.54539,238.1,238.09,0.063]
[1738344740795,1.3331608,238.1,238.09,0.063]
[1738344741716,0.54539,238.1,238.09,0.063]
[1738344742015,1.33315814,238.1,238.09,0.063]
[1738344742929,0.54539,238.1,238.09,0.063]
[1738344743414,0.54539,238.1,238.09,0.0001]
[1738344749421,0.4199,238.1,238.09,0.0001]
[1738344750618,0.78777327,238.13,238.09,0.0001]
[1738344750807,0.4199,238.12,238.09,0.0001]
[1738344751003,0.7876543,238.11,238.09,0.0001]
[1738344751320,0.4499,238.15,238.09,0.0001]
[1738344751504,0.03,238.13,238.09,0.0001]
[1738344751706,0.78747144,238.12,238.09,0.0001]
[1738344752228,0.03,238.13,238.09,0.0001]
[1738344752903,0.78750732,238.12,238.09,0.0001]
[1738344753100,1.20740732,238.12,238.09,0.0001]
[1738344754734,0.4199,238.12,238.09,0.0001]
[1738344755110,0.03,238.13,238.09,0.0001]
[1738344755467,82.6,238.12,238.09,0.0001]
[1738344757324,0.78753635,238.11,238.09,0.0001]
[1738344757824,82.6,238.1,238.09,0.0001]
[1738344758225,0.78753635,238.11,238.09,0.0001]
[1738344758713,1.78753635,238.11,238.09,0.0001]
[1738344759722,0.4199,238.1,238.09,0.0001]
[1738344761138,0.67088,238.1,238.09,0.0001]
[1738344761320,0.4199,238.1,238.09,0.0001]
[1738344761937,0.54539,238.1,238.09,0.0001]
[1738344765040,1.33322316,238.1,238.09,0.0001]
[1738344766940,1.20773316,238.1,238.09,0.0001]
[1738344767152,0.4199,238.1,238.09,0.0001]
[1738344767322,1.20756443,238.1,238.09,0.0001]
[1738344770949,1.33305443,238.1,238.09,0.0001]
[1738344775365,3.33305443,238.1,238.09,0.0001]
[1738344778043,3.36305443,238.1,238.09,0.0001]
[1738344778745,2.36305443,238.1,238.09,0.0001]
[1738344779255,1.36305443,238.1,238.09,0.0001]
[1738344780152,3.48854443,238.1,238.09,0.0001]
[1738344780925,0.12549,238.06,238.04,0.0001]
[1738344781259,0.7880646,238.05,238.03,0.0001]
[1738344781427,0.42,238.04,238.03,0.0001]
[1738344782145,1.20801915,238.04,238.03,0.0001]
[1738344784558,1.33350915,238.04,238.03,0.0001]
[1738344785561,0.42,238.04,238.03,0.0001]
[1738344786766,0.03,238.1,238.04,1.6541]
[1738344786767,0.81778303,238.1,238.04,1.6541]
[1738344787064,0.03,238.1,238.04,1.6541]
[1738344787260,0.78761435,238.09,238.04,1.6541]
[1738344787765,0.12549,238.08,238.04,1.6541]
[1738344787942,0.12549,238.06,238.03,0.0001]
[1738344788139,0.7878852,238.05,238.03,0.0001]
[1738344788561,0.42,238.04,238.03,0.0001]
[1738344788948,0.7878852,238.05,238.03,0.0001]
[1738344789278,0.78776146,238.09,238.03,0.0001]
[1738344789440,0.42,238.08,238.03,0.0001]
[1738344789641,0.78778519,238.07,238.03,0.0001]
[1738344790654,0.78776298,238.07,238.03,0.0001]
[1738344790954,0.81768419,238.1,238.03,0.0001]
[1738344791662,0.42,238.09,238.03,0.0001]
[1738344791865,0.42,238.07,238.03,0.0001]
[1738344792764,0.78769871,238.06,238.03,0.0001]
[1738344792987,0.42,238.09,238.03,0.0001]
[1738344793274,0.78769855,238.08,238.03,0.0001]
[1738344793768,0.12549,238.07,238.03,0.0001]
[1738344793955,0.78785402,238.06,238.03,0.0001]
[1738344794453,0.12549,238.05,238.03,0.0001]
[1738344794654,0.78788017,238.04,238.03,0.0001]
[1738344795258,1.20788017,238.04,238.03,0.0001]
[1738344799255,82.6,238.05,238.03,0.0001]
[1738344799686,0.78772959,238.04,238.03,0.0001]
[1738344800460,0.78783361,238.06,238.03,0.0001]
[1738344800661,0.03,238.1,238.03,0.0001]
[1738344800662,0.42,238.09,238.03,0.0001]
[1738344800860,0.78773637,238.08,238.03,0.0001]
[1738344801379,0.03,238.06,238.03,0.0001]
[1738344801550,0.81774789,238.06,238.03,0.0001]
[1738344802455,0.42,238.05,238.03,0.0001]
[1738344802649,0.78784794,238.04,238.03,0.0001]
[1738344803469,1.20784794,238.04,238.03,0.0001]
[1738344805359,1.33333794,238.04,238.03,0.0001]
[1738344806985,1.45882794,238.04,238.03,0.0001]
[1738344807183,0.12549,238.03,237.97,0.063]
[1738344807367,0.78817679,238.02,237.97,0.063]
[1738344807678,0.78817679,238.02,237.97,0.0001]
[1738344807679,0.12549,238.01,237.97,0.0001]
[1738344807853,0.12549,237.99,237.96,0.0001]
[1738344808056,0.78828411,237.98,237.96,0.0001]
[1738344808480,82.6,237.97,237.96,0.0001]
[1738344808678,82.72549,237.97,237.96,0.0001]
[1738344808986,3.5213,237.97,237.87,0.063]
[1738344809186,83.38840315,237.96,237.87,0.063]
[1738344809388,84.42228604,237.96,237.87,0.063]
[1738344809887,83.6,237.95,237.87,0.063]
[1738344810089,0.78841656,237.94,237.87,0.063]
[1738344810880,0.12549,237.91,237.87,0.063]
[1738344811083,0.12549,237.89,237.87,0.063]
[1738344811257,0.91396812,237.88,237.87,0.063]
[1738344812199,0.12549,237.87,237.85,0.063]
[1738344812493,0.25098,237.83,237.81,0.063]
[1738344812670,0.12549,237.81,237.79,0.063]
[1738344812870,1.33478088,237.8,237.79,0.063]
[1738344814189,0.12549,237.79,237.72,0.063]
[1738344814506,0.12549,237.77,237.72,0.063]
[1738344814698,0.12549,237.75,237.72,0.063]
[1738344814993,0.78891253,237.74,237.72,0.063]
[1738344815793,0.78890476,237.73,237.72,0.063]
[1738344816000,82.6,237.73,237.72,0.063]
[1738344816367,83.38890362,237.73,237.72,0.063]
[1738344817897,83.51439362,237.73,237.72,0.063]
[1738344818106,0.91439362,237.73,237.72,0.063]
[1738344818988,1.33499362,237.73,237.72,0.063]
[1738344819701,0.54609,237.73,237.72,0.063]
[1738344820507,0.67158,237.73,237.72,0.063]
[1738344820703,3.55158,237.73,237.72,0.063]
[1738344821800,3.42609,237.73,237.72,0.063]
[1738344822808,0.54609,237.73,237.72,0.063]
[1738344829994,0.4206,237.73,237.72,0.063]
[1738344831112,0.4206,237.75,237.72,0.063]
[1738344831296,0.78884519,237.74,237.72,0.063]
[1738344832503,0.4206,237.73,237.72,0.063]
[1738344835800,0.78884519,237.74,237.72,0.063]
[1738344835998,0.78882506,237.77,237.72,0.063]
[1738344836201,0.8516975,237.79,237.73,1.5166]
[1738344836412,0.063,237.79,237.74,0.51821023]
[1738344836915,0.063,237.79,237.73,6.24110932]
[1738344837595,0.063,237.79,237.73,2.03470932]
[1738344837991,0.4835,237.79,237.73,1.5166]
[1738344838995,0.4835,237.79,237.74,0.51813825]
[1738344839510,0.4835,237.79,237.73,1.5166]
[1738344840405,82.6,237.77,237.73,1.5166]
[1738344840621,0.78874397,237.76,237.73,1.5166]
[1738344841115,1.20924397,237.76,237.73,1.5166]
[1738344842113,82.6,237.75,237.72,0.063]
[1738344842297,83.3889072,237.74,237.72,0.063]
[1738344842497,82.6,237.73,237.72,0.063]
[1738344843212,83.80952392,237.73,237.72,0.063]
[1738344844623,83.93501392,237.73,237.72,0.063]
[1738344845820,1.46050392,237.73,237.72,0.063]
[1738344848324,1.33501392,237.73,237.72,0.063]
[1738344848515,0.54609,237.73,237.72,0.063]
[1738344850238,1.33505564,237.73,237.72,0.063]
[1738344851532,4.21505564,237.73,237.72,0.063]
[1738344852030,4.34054564,237.73,237.72,0.063]
[1738344853733,0.12549,237.72,237.61,1.536]
[1738344853904,0.78914294,237.71,237.61,1.536]
[1738344854529,83.6,237.7,237.56,1.57]
[1738344854734,83.38930776,237.69,237.56,1.57]
[1738344854933,84.38930776,237.69,237.56,1.57]
[1738344855420,0.12549,237.68,237.56,1.57]
[1738344855628,0.12549,237.66,237.56,1.57]
[1738344855928,0.4208,237.64,237.56,1.57]
[1738344856114,83.3893439,237.63,237.56,1.57]
[1738344857447,0.12549,237.62,237.56,1.57]
[1738344857616,0.12549,237.6,237.56,1.57]
[1738344857812,0.78935906,237.59,237.56,1.57]
[1738344858121,83.38935906,237.59,237.56,1.57]
[1738344858716,83.38935906,237.59,237.56,1.6]
[1738344859042,83.38935906,237.59,237.56,0.03]
[1738344859043,0.12549,237.58,237.56,0.03]
[1738344859209,0.91493306,237.57,237.56,0.03]
[1738344860566,1.33583306,237.57,237.56,0.03]
[1738344865940,0.78944306,237.57,237.56,0.03]
[1738344866146,0.78932654,237.58,237.56,0.03]
[1738344866326,1.21022654,237.58,237.56,0.03]
[1738344868357,82.6,237.57,237.56,0.03]
[1738344870942,83.81023113,237.57,237.56,0.03]
[1738344872035,82.6,237.57,237.56,0.03]
[1738344874233,0.4209,237.59,237.56,0.03]
[1738344874533,0.78930535,237.58,237.56,0.03]
[1738344876943,1.21020535,237.58,237.56,0.03]
[1738344880252,0.78936212,237.59,237.56,0.03]
[1738344880434,1.21016212,237.59,237.56,0.03]
[1738344882442,83.81005912,237.6,237.56,0.03]
[1738344883263,82.6,237.59,237.56,0.03]
[1738344883564,0.78940826,237.58,237.56,0.03]
[1738344883948,0.12549,237.57,237.56,0.03]
[1738344884147,0.54639,237.57,237.56,0.03]
[1738344884346,0.4209,237.57,237.56,0.03]
[1738344887076,0.4209,237.58,237.56,0.03]
[1738344887644,1.21019073,237.58,237.56,0.03]
[1738344887843,82.6,237.59,237.56,0.03]
[1738344890054,83.0208,237.59,237.56,0.03]
[1738344890467,82.6,237.59,237.56,8.71652305]
[1738344890659,82.6,237.59,237.56,8.19711507]
[1738344890862,0.4208,237.61,237.56,8.19711507]
[1738344892159,83.38915962,237.67,237.56,8.19711507]
[1738344892378,84.0726,237.66,237.56,8.19711507]
[1738344892677,0.78919437,237.65,237.56,8.19711507]
[1738344892861,0.78919437,237.65,237.56,0.03]
[1738344893059,82.6,237.64,237.56,0.03]
[1738344893246,0.78934009,237.63,237.56,0.03]
[1738344894183,1.59829,237.62,237.56,0.03]
[1738344894383,0.12549,237.6,237.56,0.03]
[1738344894598,0.78940729,237.59,237.56,0.03]
[1738344894883,82.72549,237.58,237.56,0.03]
[1738344895180,82.72549,237.58,237.56,0.0001]
[1738344895181,0.91499753,237.57,237.56,0.0001]
[1738344896270,1.33589753,237.57,237.56,0.0001]
[1738344902298,0.4209,237.57,237.56,0.0001]
[1738344903767,1.4729,237.6,237.56,0.0001]
[1738344903959,0.78936882,237.59,237.56,0.0001]
[1738344904471,0.4208,237.6,237.56,0.0001]
[1738344904672,0.78927533,237.59,237.56,0.0001]
[1738344905795,0.54639,237.58,237.56,0.0001]
[1738344905961,0.78939058,237.57,237.56,0.0001]
[1738344906371,0.85239058,237.57,237.56,0.0001]
[1738344906885,0.97788058,237.57,237.56,0.0001]
[1738344907791,1.39878058,237.57,237.56,0.0001]
[1738344909191,1.27329058,237.57,237.56,0.0001]
[1738344910292,1.39878058,237.57,237.56,0.0001]
[1738344920680,1.52427058,237.57,237.56,0.0001]
[1738344921883,0.12549,237.56,237.48,0.03]
[1738344922086,0.12549,237.54,237.48,0.03]
[1738344922392,3.66971289,237.53,237.48,0.03]
[1738344922999,1.4735,237.52,237.48,0.03]
[1738344923309,0.7897158,237.51,237.48,0.03]
[1738344923490,82.6,237.5,237.48,0.03]
[1738344923809,0.78971601,237.49,237.48,0.03]
[1738344925324,1.33620601,237.49,237.48,0.03]
[1738344926293,1.33620601,237.49,237.48,0.0001]
[1738344930891,4.36861601,237.49,237.33,1.5509]
[1738344931111,1.0,237.48,237.33,1.5509]
[1738344931304,0.79003109,237.47,237.33,1.5509]
[1738344931889,1.0,237.46,237.33,1.5509]
[1738344932097,0.79010968,237.45,237.28,8.14063163]
[1738344932326,2.6029,237.44,237.28,8.14063163]
[1738344932623,1.0,237.4,237.28,6.57203163]
[1738344932795,5.144586,237.39,237.28,6.57203163]
[1738344933189,1.0,237.36,237.28,3.163e-05]
[1738344933395,1.0,237.34,237.27,9.49e-05]
[1738344933596,0.79040871,237.33,237.24,0.03]
[1738344934290,0.12549,237.35,237.24,0.03]
[1738344934524,10.68842985,237.39,237.24,0.03]
[1738344934525,0.79028457,237.34,237.29,8.16711507]
[1738344934702,0.79013958,237.38,237.29,8.16711507]
[1738344935033,0.12549,237.37,237.27,9.76931507]
[1738344935324,0.12549,237.35,237.27,1.6022]
[1738344935506,0.79017195,237.34,237.27,1.6022]
[1738344935690,0.67218,237.37,237.27,1.6022]
[1738344935893,0.79017999,237.36,237.27,1.6022]
[1738344937113,0.12549,237.34,237.27,1.6022]
[1738344937300,0.79023852,237.33,237.27,1.6022]
[1738344937616,0.12549,237.32,237.24,0.03]
[1738344937821,0.12549,237.3,237.24,0.03]
[1738344938127,0.12549,237.28,237.24,0.03]
[1738344938629,0.79035227,237.34,237.24,0.03]
[1738344938809,1.593,237.33,237.24,0.03]
[1738344939136,0.4213,237.31,237.24,0.03]
[1738344939337,1.0,237.29,237.24,0.03]
[1738344939542,4.28538532,237.28,237.24,0.03]
[1738344940317,1.0,237.24,237.05,8.16711507]
[1738344940511,3.67082546,237.23,237.05,8.68965637]
[1738344940708,3.67082546,237.23,237.08,8.16711507]
[1738344941032,5.14612546,237.23,237.04,8.16711507]
[1738344941342,5.14612546,237.23,237.06,8.16711507]
[1738344941715,0.12549,237.22,237.05,8.16711507]
[1738344941917,0.12549,237.2,237.06,8.16711507]
[1738344942122,0.54709,237.18,237.06,8.16711507]
[1738344942432,0.12549,237.16,237.06,8.16711507]
[1738344942616,0.79084219,237.15,237.06,12.81046918]
[1738344942817,0.12549,237.14,237.05,12.81046918]
[1738344943160,0.79088574,237.13,237.05,12.81046918]
[1738344944016,0.79087898,237.12,237.05,12.81046918]
[1738344944252,0.54709,237.14,237.05,12.81046918]
[1738344944416,0.79087816,237.13,237.05,12.81046918]
[1738344944613,0.79087816,237.13,237.05,17.02886918]
[1738344944921,0.79087816,237.13,237.06,12.81046918]
[1738344945116,0.79087816,237.13,237.07,12.81046918]
[1738344945317,0.12549,237.15,237.07,12.81046918]
[1738344945533,0.79081746,237.14,237.07,12.81046918]
[1738344946114,0.79081746,237.14,237.06,13.33315788]
[1738344946746,0.4216,237.19,237.08,12.81046918]
[1738344947043,0.79075796,237.18,237.07,12.81046918]
[1738344948125,0.12549,237.17,237.04,17.02896918]
[1738344948332,0.12549,237.15,237.03,18.55036918]
[1738344948518,0.7909422,237.14,237.03,18.55036918]
[1738344948714,0.7909422,237.14,236.98,10.5491]
[1738344948715,0.12549,237.11,236.95,12.81046918]
[1738344948920,3.67121411,237.1,236.96,12.81046918]
[1738344949321,3.67121411,237.1,236.98,12.81046918]
[1738344949522,3.67121411,237.1,236.99,12.81046918]
[1738344950134,3.67121411,237.1,237.01,12.81046918]
[1738344950325,3.67121411,237.1,237.05,12.81046918]
[1738344950951,3.67121411,237.1,237.04,12.81046918]
[1738344951139,0.12549,237.09,237.03,12.81046918]
[1738344951923,3.67121411,237.1,237.04,12.81046918]
[1738344952426,3.67121411,237.1,237.03,12.81046918]
[1738344953150,3.67121411,237.1,237.04,4.2186]
[1738344953942,3.67121411,237.1,237.05,0.03]
[1738344955672,2.88,237.18,237.05,0.03]
[1738344955863,0.12549,237.16,237.05,0.03]
[1738344956045,0.12549,237.14,237.05,0.03]
[1738344956251,0.79097507,237.13,237.05,0.03]
[1738344957861,0.4217,237.12,237.05,0.03]
[1738344958045,0.79097138,237.11,237.05,0.03]
[1738344959050,0.12549,237.1,237.05,0.03]
[1738344959254,0.12549,237.08,237.05,0.03]
[1738344959465,0.79104491,237.07,237.05,0.03]
[1738344959644,0.12549,237.06,237.05,0.03]
[1738344959852,0.54729,237.06,237.05,0.03]
[1738344964271,0.54729,237.06,236.96,0.52318625]
[1738344964440,3.92226157,237.05,236.91,12.81046918]
[1738344964637,3.92226157,237.05,236.9,12.81046918]
[1738344964841,3.92226157,237.05,236.9,13.3340878]
[1738344965040,3.92226157,237.05,236.89,12.81046918]
[1738344965263,4.92226157,237.05,236.87,12.81046918]
[1738344965748,3.92226157,237.05,236.9,12.81046918]
[1738344965949,3.92226157,237.05,236.9,11.81046918]